[Event "Titled Tuesday Blitz December 13 Early 2022"]
[White "Perez Ponsa, Federico"]
[Black "Mihajlov, Sebastian"]
[WhiteFideId "117927"]
[BlackFideId "1512110"]
[WhiteElo "2846"]
[BlackElo "2579"]
[Result "0-1"]
[Round "03"]
[TimeControl "180+1"]
[Date "2022.12.14"]
[WhiteClock "0:02:01"]
[BlackClock "0:01:29"]

1. e4 {[%clk 0:03:00]}  e6 {[%clk 0:02:53]} 2. d4 {[%clk 0:02:59]}  d5 {[%clk 0:02:53]} 3. exd5 {[%clk 0:02:54]}  exd5 {[%clk 0:02:53]} 4. Nf3 {[%clk 0:02:55]}  Nf6 {[%clk 0:02:54]} 5. Bd3 {[%clk 0:02:55]}  Bd6 {[%clk 0:02:55]} 6. Qe2+ {[%clk 0:02:55]}  Be6 {[%clk 0:02:54]} 7. Ng5 {[%clk 0:02:49]}  Qe7 {[%clk 0:02:50]} 8. Nxe6 {[%clk 0:02:49]}  fxe6 {[%clk 0:02:51]} 9. O-O {[%clk 0:02:48]}  O-O {[%clk 0:02:51]} 10. c4 {[%clk 0:02:47]}  Nc6 {[%clk 0:02:26]} 11. Be3 {[%clk 0:02:48]}  dxc4 {[%clk 0:02:15]} 12. Bxc4 {[%clk 0:02:48]}  Kh8 {[%clk 0:02:14]} 13. Nc3 {[%clk 0:02:48]}  Rae8 {[%clk 0:02:14]} 14. h3 {[%clk 0:02:43]}  a6 {[%clk 0:02:10]} 15. Rad1 {[%clk 0:02:43]}  e5 {[%clk 0:02:08]} 16. d5 {[%clk 0:02:41]}  Nd8 {[%clk 0:02:04]} 17. Rfe1 {[%clk 0:02:37]}  Nf7 {[%clk 0:02:02]} 18. a3 {[%clk 0:02:35]}  e4 {[%clk 0:01:47]} 19. Bd4 {[%clk 0:02:35]}  Ne5 {[%clk 0:01:47]} 20. Ba2 {[%clk 0:02:26]}  Nd3 {[%clk 0:01:44]} 21. Rf1 {[%clk 0:02:27]}  Nf4 {[%clk 0:01:42]} 22. Qe3 {[%clk 0:02:24]}  Qf7 {[%clk 0:01:38]} 23. Bc5 {[%clk 0:02:07]}  Qg6 {[%clk 0:01:31]} 24. g3 {[%clk 0:02:03]}  Nxh3+ {[%clk 0:01:30]} 25. Kh2 {[%clk 0:02:01]}  Ng4+ {[%clk 0:01:29]} 0-1


[Site "https://www.chess.com"]

[Event "Titled Tuesday Blitz December 13 Early 2022"]
[White "Postnikov, Artem"]
[Black "Prieto Aranguren, Alain"]
[WhiteFideId "34153575"]
[BlackFideId "2268906"]
[WhiteElo "2243"]
[BlackElo "2209"]
[Result "1-0"]
[Round "03"]
[TimeControl "180+1"]
[Date "2022.12.14"]
[WhiteClock "0:00:45"]
[BlackClock "0:01:19"]

1. d4 {[%clk 0:03:00]}  d5 {[%clk 0:02:59]} 2. c4 {[%clk 0:03:00]}  c6 {[%clk 0:02:58]} 3. Nf3 {[%clk 0:03:00]}  Nf6 {[%clk 0:02:57]} 4. e3 {[%clk 0:03:00]}  g6 {[%clk 0:02:57]} 5. Nc3 {[%clk 0:03:00]}  Bg7 {[%clk 0:02:57]} 6. Be2 {[%clk 0:03:00]}  O-O {[%clk 0:02:57]} 7. O-O {[%clk 0:03:01]}  Na6 {[%clk 0:02:56]} 8. cxd5 {[%clk 0:02:51]}  Nxd5 {[%clk 0:02:54]} 9. Qb3 {[%clk 0:02:34]}  Nxc3 {[%clk 0:02:53]} 10. bxc3 {[%clk 0:02:34]}  c5 {[%clk 0:02:50]} 11. Ba3 {[%clk 0:02:33]}  cxd4 {[%clk 0:02:49]} 12. cxd4 {[%clk 0:02:34]}  Nc7 {[%clk 0:02:41]} 13. Rac1 {[%clk 0:02:28]}  b6 {[%clk 0:02:40]} 14. Ne5 {[%clk 0:02:20]}  Bb7 {[%clk 0:02:34]} 15. Nc6 {[%clk 0:02:19]}  Bxc6 {[%clk 0:02:33]} 16. Rxc6 {[%clk 0:02:19]}  Nd5 {[%clk 0:02:30]} 17. Rfc1 {[%clk 0:02:16]}  Qd7 {[%clk 0:02:22]} 18. Bf3 {[%clk 0:02:08]}  Rfd8 {[%clk 0:02:20]} 19. Bxd5 {[%clk 0:01:48]}  Qxd5 {[%clk 0:02:20]} 20. Bxe7 {[%clk 0:01:48]}  Qxb3 {[%clk 0:02:17]} 21. axb3 {[%clk 0:01:48]}  Re8 {[%clk 0:02:15]} 22. Bd6 {[%clk 0:01:46]}  Bf8 {[%clk 0:02:13]} 23. Bxf8 {[%clk 0:01:44]}  Kxf8 {[%clk 0:02:12]} 24. Rc7 {[%clk 0:01:35]}  Re7 {[%clk 0:02:10]} 25. Kf1 {[%clk 0:01:30]}  a5 {[%clk 0:02:07]} 26. Rxe7 {[%clk 0:01:26]}  Kxe7 {[%clk 0:02:06]} 27. Rc7+ {[%clk 0:01:26]}  Kd6 {[%clk 0:02:03]} 28. Rc3 {[%clk 0:01:09]}  b5 {[%clk 0:02:02]} 29. Ke2 {[%clk 0:01:09]}  f5 {[%clk 0:01:56]} 30. Kd3 {[%clk 0:01:08]}  a4 {[%clk 0:01:54]} 31. bxa4 {[%clk 0:01:07]}  bxa4 {[%clk 0:01:53]} 32. Ra3 {[%clk 0:00:58]}  Kd5 {[%clk 0:01:51]} 33. f3 {[%clk 0:00:59]}  Rb8 {[%clk 0:01:45]} 34. e4+ {[%clk 0:00:58]}  fxe4+ {[%clk 0:01:45]} 35. fxe4+ {[%clk 0:00:59]}  Ke6 {[%clk 0:01:45]} 36. Rxa4 {[%clk 0:00:59]}  Rb2 {[%clk 0:01:45]} 37. Ra6+ {[%clk 0:00:59]}  Kf7 {[%clk 0:01:42]} 38. d5 {[%clk 0:00:58]}  Rxg2 {[%clk 0:01:40]} 39. e5 {[%clk 0:00:57]}  Rxh2 {[%clk 0:01:38]} 40. Ra7+ {[%clk 0:00:58]}  Ke8 {[%clk 0:01:37]} 41. e6 {[%clk 0:00:58]}  Rb2 {[%clk 0:01:27]} 42. d6 {[%clk 0:00:52]}  Kf8 {[%clk 0:01:20]} 43. Ra8+ {[%clk 0:00:44]}  Kg7 {[%clk 0:01:19]} 44. e7 {[%clk 0:00:45]} 1-0


[Site "https://www.chess.com"]

[Event "Titled Tuesday Blitz December 13 Early 2022"]
[White "Pranesh M"]
[Black "Morefield, Jason"]
[WhiteFideId "35028600"]
[BlackFideId "30920825"]
[WhiteElo "2403"]
[BlackElo "2171"]
[Result "0-1"]
[Round "03"]
[TimeControl "180+1"]
[Date "2022.12.13"]
[WhiteClock "0:00:19"]
[BlackClock "0:00:16"]

1. e4 {[%clk 0:03:00]}  e5 {[%clk 0:02:58]} 2. Nf3 {[%clk 0:03:01]}  Nc6 {[%clk 0:02:59]} 3. Bb5 {[%clk 0:03:01]}  Nf6 {[%clk 0:02:59]} 4. d3 {[%clk 0:03:00]}  Bc5 {[%clk 0:02:58]} 5. c3 {[%clk 0:03:00]}  O-O {[%clk 0:02:55]} 6. O-O {[%clk 0:02:59]}  d5 {[%clk 0:02:55]} 7. Nbd2 {[%clk 0:02:44]}  Bg4 {[%clk 0:02:37]} 8. h3 {[%clk 0:02:44]}  Bh5 {[%clk 0:02:37]} 9. exd5 {[%clk 0:02:35]}  Qxd5 {[%clk 0:02:35]} 10. Bc4 {[%clk 0:02:25]}  Qd7 {[%clk 0:02:26]} 11. b4 {[%clk 0:02:19]}  Bd6 {[%clk 0:02:17]} 12. Re1 {[%clk 0:02:11]}  Rad8 {[%clk 0:02:09]} 13. Nf1 {[%clk 0:02:09]}  e4 {[%clk 0:01:56]} 14. dxe4 {[%clk 0:01:54]}  Bh2+ {[%clk 0:01:55]} 15. Kxh2 {[%clk 0:01:55]}  Qxd1 {[%clk 0:01:56]} 16. Rxd1 {[%clk 0:01:55]}  Rxd1 {[%clk 0:01:56]} 17. Be2 {[%clk 0:01:56]}  Bxf3 {[%clk 0:01:35]} 18. gxf3 {[%clk 0:01:51]}  Re1 {[%clk 0:01:35]} 19. Ng3 {[%clk 0:01:44]}  Rd8 {[%clk 0:01:15]} 20. a4 {[%clk 0:01:23]}  h5 {[%clk 0:01:02]} 21. h4 {[%clk 0:01:21]}  Ne5 {[%clk 0:01:01]} 22. Bb2 {[%clk 0:00:46]}  Rxe2 {[%clk 0:00:57]} 23. Nxe2 {[%clk 0:00:47]}  Rd2 {[%clk 0:00:57]} 24. Bc1 {[%clk 0:00:40]}  Rxe2 {[%clk 0:00:56]} 25. Be3 {[%clk 0:00:40]}  Nxf3+ {[%clk 0:00:47]} 26. Kg3 {[%clk 0:00:39]}  Nd2 {[%clk 0:00:41]} 27. e5 {[%clk 0:00:31]}  Nfe4+ {[%clk 0:00:38]} 28. Kg2 {[%clk 0:00:26]}  Nxc3 {[%clk 0:00:31]} 29. Bxa7 {[%clk 0:00:17]}  Nd5 {[%clk 0:00:15]} 30. a5 {[%clk 0:00:13]}  Nxb4 {[%clk 0:00:14]} 31. Rc1 {[%clk 0:00:11]}  c6 {[%clk 0:00:14]} 32. Rc3 {[%clk 0:00:05]}  Rxe5 {[%clk 0:00:12]} 33. Bc5 {[%clk 0:00:02]}  Na6 {[%clk 0:00:10]} 34. Bd4 {[%clk 0:00:01]}  Rd5 {[%clk 0:00:10]} 35. Be3 {[%clk 0:00:02]}  Ne4 {[%clk 0:00:10]} 36. Rc4 {[%clk 0:00:03]}  Nd6 {[%clk 0:00:10]} 37. Rc2 {[%clk 0:00:03]}  Rxa5 {[%clk 0:00:09]} 38. Bf4 {[%clk 0:00:03]}  Rd5 {[%clk 0:00:10]} 39. Re2 {[%clk 0:00:04]}  f6 {[%clk 0:00:10]} 40. Re7 {[%clk 0:00:04]}  Nc5 {[%clk 0:00:08]} 41. Bg3 {[%clk 0:00:03]}  Nf5 {[%clk 0:00:07]} 42. Re8+ {[%clk 0:00:03]}  Kf7 {[%clk 0:00:07]} 43. Re1 {[%clk 0:00:04]}  Nxg3 {[%clk 0:00:08]} 44. Kxg3 {[%clk 0:00:05]}  b5 {[%clk 0:00:08]} 45. Kf3 {[%clk 0:00:06]}  b4 {[%clk 0:00:09]} 46. Rc1 {[%clk 0:00:06]}  b3 {[%clk 0:00:09]} 47. Rb1 {[%clk 0:00:07]}  Rd4 {[%clk 0:00:08]} 48. Ke2 {[%clk 0:00:08]}  Rb4 {[%clk 0:00:08]} 49. Kd2 {[%clk 0:00:08]}  Ne6 {[%clk 0:00:09]} 50. Kc3 {[%clk 0:00:09]}  c5 {[%clk 0:00:09]} 51. f3 {[%clk 0:00:09]}  b2 {[%clk 0:00:09]} 52. Kd3 {[%clk 0:00:10]}  Kg6 {[%clk 0:00:09]} 53. Kc3 {[%clk 0:00:11]}  Kf5 {[%clk 0:00:10]} 54. Rxb2 {[%clk 0:00:12]}  Rxb2 {[%clk 0:00:10]} 55. Kxb2 {[%clk 0:00:13]}  Kf4 {[%clk 0:00:10]} 56. Kc3 {[%clk 0:00:13]}  Kxf3 {[%clk 0:00:11]} 57. Kc4 {[%clk 0:00:14]}  f5 {[%clk 0:00:12]} 58. Kd5 {[%clk 0:00:15]}  f4 {[%clk 0:00:12]} 59. Kxe6 {[%clk 0:00:16]}  Kg4 {[%clk 0:00:12]} 60. Ke5 {[%clk 0:00:16]}  f3 {[%clk 0:00:13]} 61. Ke6 {[%clk 0:00:16]}  f2 {[%clk 0:00:13]} 62. Kf7 {[%clk 0:00:17]}  f1=Q+ {[%clk 0:00:14]} 63. Kg6 {[%clk 0:00:18]}  Qf5+ {[%clk 0:00:14]} 64. Kxg7 {[%clk 0:00:18]}  Qe6 {[%clk 0:00:14]} 65. Kh8 {[%clk 0:00:18]}  Qe7 {[%clk 0:00:14]} 66. Kg8 {[%clk 0:00:18]}  Kf5 {[%clk 0:00:15]} 67. Kh8 {[%clk 0:00:19]}  Kg6 {[%clk 0:00:16]} 0-1


[Site "https://www.chess.com"]

[Event "Titled Tuesday Blitz December 13 Early 2022"]
[White "Rian, Kapriaga"]
[Black "Osinovsky, Stepan"]
[WhiteFideId "7103263"]
[BlackFideId "4157354"]
[WhiteElo "2259"]
[BlackElo "2222"]
[Result "1-0"]
[Round "03"]
[TimeControl "180+1"]
[Date "2022.12.14"]
[WhiteClock "0:00:25"]
[BlackClock "0:00:03"]

1. d4 {[%clk 0:03:00]}  Nf6 {[%clk 0:02:58]} 2. Nf3 {[%clk 0:03:00]}  g6 {[%clk 0:02:58]} 3. Bg5 {[%clk 0:03:00]}  c5 {[%clk 0:02:57]} 4. c3 {[%clk 0:02:42]}  Ne4 {[%clk 0:02:53]} 5. Be3 {[%clk 0:02:34]}  cxd4 {[%clk 0:02:46]} 6. cxd4 {[%clk 0:02:34]}  Qa5+ {[%clk 0:02:23]} 7. Nbd2 {[%clk 0:02:33]}  Nc6 {[%clk 0:02:17]} 8. a3 {[%clk 0:02:27]}  Nxd2 {[%clk 0:01:50]} 9. Bxd2 {[%clk 0:02:27]}  Qb6 {[%clk 0:01:50]} 10. d5 {[%clk 0:02:27]}  Nd4 {[%clk 0:01:13]} 11. Nxd4 {[%clk 0:02:06]}  Qxd4 {[%clk 0:01:14]} 12. Qb3 {[%clk 0:01:57]}  Qb6 {[%clk 0:01:04]} 13. Qxb6 {[%clk 0:01:55]}  axb6 {[%clk 0:01:05]} 14. Bc3 {[%clk 0:01:54]}  f6 {[%clk 0:01:03]} 15. e4 {[%clk 0:01:52]}  Bg7 {[%clk 0:00:27]} 16. Bd4 {[%clk 0:01:41]}  O-O {[%clk 0:00:24]} 17. Rc1 {[%clk 0:01:40]}  f5 {[%clk 0:00:19]} 18. e5 {[%clk 0:01:38]}  d6 {[%clk 0:00:19]} 19. f4 {[%clk 0:01:37]}  e6 {[%clk 0:00:16]} 20. Bc4 {[%clk 0:01:36]}  exd5 {[%clk 0:00:15]} 21. Bxd5+ {[%clk 0:01:36]}  Kh8 {[%clk 0:00:16]} 22. O-O {[%clk 0:01:18]}  Ra5 {[%clk 0:00:16]} 23. Bc4 {[%clk 0:00:57]}  dxe5 {[%clk 0:00:15]} 24. Bxb6 {[%clk 0:00:56]}  Ra4 {[%clk 0:00:13]} 25. b3 {[%clk 0:00:53]}  Ra8 {[%clk 0:00:10]} 26. fxe5 {[%clk 0:00:50]}  Bxe5 {[%clk 0:00:09]} 27. a4 {[%clk 0:00:45]}  Bd7 {[%clk 0:00:09]} 28. Bd5 {[%clk 0:00:39]}  Rfc8 {[%clk 0:00:07]} 29. Rce1 {[%clk 0:00:30]}  Re8 {[%clk 0:00:05]} 30. Rxe5 {[%clk 0:00:26]}  Rxe5 {[%clk 0:00:05]} 31. Bd4 {[%clk 0:00:26]}  Re8 {[%clk 0:00:05]} 32. Re1 {[%clk 0:00:26]}  Kg7 {[%clk 0:00:03]} 33. Rxe5 {[%clk 0:00:25]} 1-0


[Site "https://www.chess.com"]

[Event "Titled Tuesday Blitz December 13 Early 2022"]
[White "Roebers, Jan"]
[Black "Gonzalez, Francisco Silva"]
[WhiteFideId "1007815"]
[BlackFideId "1512285"]
[WhiteElo "2119"]
[BlackElo "2220"]
[Result "1/2-1/2"]
[Round "03"]
[TimeControl "180+1"]
[Date "2022.12.14"]
[WhiteClock "0:00:19"]
[BlackClock "0:00:24"]

1. e4 {[%clk 0:02:56]}  e5 {[%clk 0:02:59]} 2. Nf3 {[%clk 0:02:55]}  Nc6 {[%clk 0:02:59]} 3. d4 {[%clk 0:02:55]}  exd4 {[%clk 0:02:58]} 4. c3 {[%clk 0:02:56]}  Nge7 {[%clk 0:02:57]} 5. cxd4 {[%clk 0:02:54]}  d5 {[%clk 0:02:57]} 6. e5 {[%clk 0:02:53]}  Bg4 {[%clk 0:02:56]} 7. Be2 {[%clk 0:02:52]}  Nf5 {[%clk 0:02:56]} 8. Be3 {[%clk 0:02:50]}  g6 {[%clk 0:02:54]} 9. h3 {[%clk 0:02:47]}  Bxf3 {[%clk 0:02:53]} 10. Bxf3 {[%clk 0:02:48]}  Nxe3 {[%clk 0:02:52]} 11. fxe3 {[%clk 0:02:46]}  Bh6 {[%clk 0:02:52]} 12. Qe2 {[%clk 0:02:39]}  O-O {[%clk 0:02:51]} 13. O-O {[%clk 0:02:38]}  Ne7 {[%clk 0:02:46]} 14. Nc3 {[%clk 0:02:33]}  c6 {[%clk 0:02:43]} 15. Rad1 {[%clk 0:02:28]}  Nf5 {[%clk 0:02:43]} 16. e4 {[%clk 0:02:15]}  Be3+ {[%clk 0:02:42]} 17. Kh2 {[%clk 0:02:13]}  Bf4+ {[%clk 0:02:41]} 18. Kg1 {[%clk 0:02:11]}  Be3+ {[%clk 0:02:41]} 19. Kh2 {[%clk 0:02:10]}  Bf4+ {[%clk 0:02:05]} 20. Kg1 {[%clk 0:02:09]}  Ng3 {[%clk 0:02:05]} 21. Qe1 {[%clk 0:01:46]}  Nxf1 {[%clk 0:02:02]} 22. Kxf1 {[%clk 0:01:46]}  dxe4 {[%clk 0:01:55]} 23. Nxe4 {[%clk 0:01:45]}  Kg7 {[%clk 0:01:49]} 24. Kg1 {[%clk 0:01:34]}  Re8 {[%clk 0:01:44]} 25. Kh1 {[%clk 0:01:32]}  h5 {[%clk 0:01:42]} 26. Nf6 {[%clk 0:01:28]}  Re6 {[%clk 0:01:40]} 27. g4 {[%clk 0:01:23]}  hxg4 {[%clk 0:01:35]} 28. Bxg4 {[%clk 0:01:22]}  Rxf6 {[%clk 0:01:35]} 29. exf6+ {[%clk 0:01:22]}  Qxf6 {[%clk 0:01:35]} 30. Qe4 {[%clk 0:01:16]}  Qg5 {[%clk 0:01:33]} 31. Rf1 {[%clk 0:01:12]}  Bd6 {[%clk 0:01:32]} 32. d5 {[%clk 0:01:06]}  Qxd5 {[%clk 0:01:31]} 33. Qxd5 {[%clk 0:01:05]}  cxd5 {[%clk 0:01:31]} 34. Bf3 {[%clk 0:01:05]}  f5 {[%clk 0:01:23]} 35. Bxd5 {[%clk 0:01:04]}  Rc8 {[%clk 0:01:20]} 36. Bb3 {[%clk 0:00:55]}  Be5 {[%clk 0:01:17]} 37. Rd1 {[%clk 0:00:54]}  b5 {[%clk 0:01:12]} 38. Rd5 {[%clk 0:00:47]}  Bxb2 {[%clk 0:01:10]} 39. Rxb5 {[%clk 0:00:47]}  Kf6 {[%clk 0:01:07]} 40. Rb7 {[%clk 0:00:42]}  Bd4 {[%clk 0:01:04]} 41. Kg2 {[%clk 0:00:40]}  g5 {[%clk 0:01:03]} 42. Kf3 {[%clk 0:00:38]}  Rc3+ {[%clk 0:01:01]} 43. Kg2 {[%clk 0:00:38]}  Rd3 {[%clk 0:00:58]} 44. Rf7+ {[%clk 0:00:36]}  Ke5 {[%clk 0:00:57]} 45. Re7+ {[%clk 0:00:29]}  Kf4 {[%clk 0:00:56]} 46. Re2 {[%clk 0:00:29]}  Rg3+ {[%clk 0:00:55]} 47. Kh2 {[%clk 0:00:29]}  Bg1+ {[%clk 0:00:54]} 48. Kh1 {[%clk 0:00:28]}  Be3 {[%clk 0:00:51]} 49. Kh2 {[%clk 0:00:27]}  Rf3 {[%clk 0:00:39]} 50. Be6 {[%clk 0:00:21]}  a5 {[%clk 0:00:26]} 51. Kg2 {[%clk 0:00:19]}  Rg3+ {[%clk 0:00:25]} 52. Kh2 {[%clk 0:00:19]}  Bg1+ {[%clk 0:00:24]} 53. Kh1 {[%clk 0:00:19]}  Be3 {[%clk 0:00:24]} 54. Kh2 {[%clk 0:00:19]}  Rf3 {[%clk 0:00:24]} 55. Kg2 {[%clk 0:00:19]}  Rg3+ {[%clk 0:00:24]} 56. Kh2 {[%clk 0:00:19]} 1/2-1/2


[Site "https://www.chess.com"]

[Event "Titled Tuesday Blitz December 13 Early 2022"]
[White "Roque Sola, Jose Luis"]
[Black "Shtompel, Yuriy"]
[WhiteFideId "5120390"]
[BlackFideId "14168278"]
[WhiteElo "2117"]
[BlackElo "1844"]
[Result "1-0"]
[Round "03"]
[TimeControl "180+1"]
[Date "2022.12.14"]
[WhiteClock "0:00:19"]
[BlackClock "0:00:04"]

1. c4 {[%clk 0:03:00]}  e5 {[%clk 0:02:49]} 2. Nc3 {[%clk 0:03:00]}  Nc6 {[%clk 0:02:39]} 3. Nf3 {[%clk 0:02:59]}  g6 {[%clk 0:02:36]} 4. g3 {[%clk 0:02:58]}  Bg7 {[%clk 0:02:32]} 5. Bg2 {[%clk 0:02:58]}  Nge7 {[%clk 0:02:30]} 6. O-O {[%clk 0:02:56]}  d6 {[%clk 0:02:31]} 7. d3 {[%clk 0:02:53]}  O-O {[%clk 0:02:20]} 8. Rb1 {[%clk 0:02:52]}  Be6 {[%clk 0:02:10]} 9. Nd2 {[%clk 0:02:08]}  Qd7 {[%clk 0:02:07]} 10. b4 {[%clk 0:02:07]}  f5 {[%clk 0:01:40]} 11. b5 {[%clk 0:02:04]}  Nd8 {[%clk 0:01:40]} 12. Ba3 {[%clk 0:02:01]}  f4 {[%clk 0:01:23]} 13. Nce4 {[%clk 0:01:38]}  h6 {[%clk 0:00:57]} 14. c5 {[%clk 0:01:24]}  d5 {[%clk 0:00:54]} 15. c6 {[%clk 0:01:23]}  Qc8 {[%clk 0:00:49]} 16. cxb7 {[%clk 0:01:18]}  Nxb7 {[%clk 0:00:48]} 17. Bxe7 {[%clk 0:01:17]}  dxe4 {[%clk 0:00:45]} 18. Bxf8 {[%clk 0:01:16]}  Qxf8 {[%clk 0:00:34]} 19. Bxe4 {[%clk 0:01:14]}  Rb8 {[%clk 0:00:34]} 20. Bxg6 {[%clk 0:01:12]}  Bh3 {[%clk 0:00:26]} 21. Re1 {[%clk 0:01:11]}  fxg3 {[%clk 0:00:22]} 22. hxg3 {[%clk 0:01:09]}  Nd6 {[%clk 0:00:22]} 23. Qb3+ {[%clk 0:01:08]}  Kh8 {[%clk 0:00:22]} 24. Ne4 {[%clk 0:00:59]}  Nf5 {[%clk 0:00:18]} 25. Qf7 {[%clk 0:00:58]}  Qc8 {[%clk 0:00:13]} 26. Nf6 {[%clk 0:00:56]}  Rb6 {[%clk 0:00:12]} 27. Nh5 {[%clk 0:00:53]}  Qd8 {[%clk 0:00:04]} 28. Qe8+ {[%clk 0:00:53]}  Qxe8 {[%clk 0:00:05]} 29. Bxe8 {[%clk 0:00:54]}  Bf8 {[%clk 0:00:05]} 30. a4 {[%clk 0:00:51]}  Bg4 {[%clk 0:00:04]} 31. a5 {[%clk 0:00:46]}  Rd6 {[%clk 0:00:05]} 32. Rbc1 {[%clk 0:00:40]}  Bxh5 {[%clk 0:00:03]} 33. Bxh5 {[%clk 0:00:39]}  Nd4 {[%clk 0:00:04]} 34. Rxc7 {[%clk 0:00:38]}  Nxb5 {[%clk 0:00:04]} 35. Rb7 {[%clk 0:00:37]}  a6 {[%clk 0:00:04]} 36. Rb6 {[%clk 0:00:37]}  Kg7 {[%clk 0:00:04]} 37. Rxd6 {[%clk 0:00:34]}  Bxd6 {[%clk 0:00:05]} 38. Rc1 {[%clk 0:00:34]}  Bb4 {[%clk 0:00:05]} 39. Rc6 {[%clk 0:00:33]}  Bxa5 {[%clk 0:00:06]} 40. Rxa6 {[%clk 0:00:33]}  Bc3 {[%clk 0:00:06]} 41. Rg6+ {[%clk 0:00:32]}  Kh7 {[%clk 0:00:06]} 42. Rb6 {[%clk 0:00:32]}  Nd4 {[%clk 0:00:06]} 43. Rb7+ {[%clk 0:00:31]}  Kg8 {[%clk 0:00:07]} 44. Kg2 {[%clk 0:00:24]}  Nf5 {[%clk 0:00:06]} 45. Bg6 {[%clk 0:00:22]}  Nd4 {[%clk 0:00:06]} 46. Bh7+ {[%clk 0:00:21]}  Kh8 {[%clk 0:00:06]} 47. Be4 {[%clk 0:00:21]}  Ne6 {[%clk 0:00:06]} 48. Rh7+ {[%clk 0:00:19]}  Kg8 {[%clk 0:00:06]} 49. Rxh6 {[%clk 0:00:20]}  Nc5 {[%clk 0:00:04]} 50. Bd5+ {[%clk 0:00:19]}  Kf8 {[%clk 0:00:04]} 51. Rc6 {[%clk 0:00:19]}  Bb4 {[%clk 0:00:05]} 52. Rc8+ {[%clk 0:00:17]}  Ke7 {[%clk 0:00:05]} 53. g4 {[%clk 0:00:18]}  Nd7 {[%clk 0:00:05]} 54. Rc7 {[%clk 0:00:18]}  Kd6 {[%clk 0:00:05]} 55. Rxd7+ {[%clk 0:00:18]}  Kxd7 {[%clk 0:00:05]} 56. Be4 {[%clk 0:00:18]}  Ke7 {[%clk 0:00:05]} 57. g5 {[%clk 0:00:19]}  Kf7 {[%clk 0:00:05]} 58. g6+ {[%clk 0:00:19]}  Kg7 {[%clk 0:00:06]} 59. Kg3 {[%clk 0:00:19]}  Kf6 {[%clk 0:00:07]} 60. e3 {[%clk 0:00:19]}  Bd2 {[%clk 0:00:07]} 61. Kf3 {[%clk 0:00:19]}  Bc1 {[%clk 0:00:07]} 62. d4 {[%clk 0:00:19]}  exd4 {[%clk 0:00:04]} 63. exd4 {[%clk 0:00:20]}  Bb2 {[%clk 0:00:05]} 64. Ke3 {[%clk 0:00:19]}  Ba3 {[%clk 0:00:04]} 65. d5 {[%clk 0:00:19]}  Bd6 {[%clk 0:00:02]} 66. f4 {[%clk 0:00:18]}  Kg7 {[%clk 0:00:02]} 67. f5 {[%clk 0:00:18]}  Kf6 {[%clk 0:00:02]} 68. Kd4 {[%clk 0:00:19]}  Kg7 {[%clk 0:00:01]} 69. Kc4 {[%clk 0:00:18]}  Kf6 {[%clk 0:00:02]} 70. Kb5 {[%clk 0:00:19]}  Ke5 {[%clk 0:00:02]} 71. g7 {[%clk 0:00:18]}  Kf6 {[%clk 0:00:03]} 72. g8=Q {[%clk 0:00:19]}  Be5 {[%clk 0:00:04]} 73. Qe6+ {[%clk 0:00:19]} 1-0


[Site "https://www.chess.com"]

[Event "Titled Tuesday Blitz December 13 Early 2022"]
[White "Samarth, J Rao"]
[Black "Diaz Rosas, Julio Cesar"]
[WhiteFideId "46652370"]
[BlackFideId "5105099"]
[WhiteElo "1564"]
[BlackElo "2246"]
[Result "0-1"]
[Round "03"]
[TimeControl "180+1"]
[Date "2022.12.14"]
[WhiteClock "0:00:01"]
[BlackClock "0:00:32"]

1. Nf3 {[%clk 0:03:00]}  d5 {[%clk 0:02:59]} 2. g3 {[%clk 0:03:01]}  Nf6 {[%clk 0:02:58]} 3. Bg2 {[%clk 0:03:02]}  Nbd7 {[%clk 0:02:58]} 4. O-O {[%clk 0:03:03]}  e5 {[%clk 0:02:58]} 5. d3 {[%clk 0:03:04]}  Bc5 {[%clk 0:02:57]} 6. Nbd2 {[%clk 0:03:04]}  O-O {[%clk 0:02:57]} 7. e4 {[%clk 0:03:04]}  dxe4 {[%clk 0:02:54]} 8. Nxe4 {[%clk 0:03:04]}  Nxe4 {[%clk 0:02:54]} 9. dxe4 {[%clk 0:03:05]}  Qe7 {[%clk 0:02:54]} 10. c3 {[%clk 0:03:01]}  Bb6 {[%clk 0:02:52]} 11. Qe2 {[%clk 0:03:01]}  a5 {[%clk 0:02:50]} 12. Rd1 {[%clk 0:03:01]}  a4 {[%clk 0:02:49]} 13. Bg5 {[%clk 0:02:56]}  Qe6 {[%clk 0:02:40]} 14. Nh4 {[%clk 0:02:53]}  h6 {[%clk 0:02:35]} 15. Be3 {[%clk 0:02:44]}  a3 {[%clk 0:02:21]} 16. b3 {[%clk 0:02:14]}  Qc6 {[%clk 0:02:19]} 17. Nf5 {[%clk 0:02:10]}  Re8 {[%clk 0:02:10]} 18. Qg4 {[%clk 0:01:52]}  Qg6 {[%clk 0:02:07]} 19. Qxg6 {[%clk 0:01:36]}  fxg6 {[%clk 0:02:08]} 20. Bxb6 {[%clk 0:01:36]}  Nxb6 {[%clk 0:02:02]} 21. Ne3 {[%clk 0:01:36]}  c6 {[%clk 0:02:02]} 22. Rd6 {[%clk 0:01:34]}  Be6 {[%clk 0:02:00]} 23. Rad1 {[%clk 0:01:31]}  Kf7 {[%clk 0:01:50]} 24. c4 {[%clk 0:01:30]}  Nc8 {[%clk 0:01:48]} 25. R6d2 {[%clk 0:01:29]}  Ne7 {[%clk 0:01:44]} 26. f4 {[%clk 0:01:26]}  exf4 {[%clk 0:01:39]} 27. gxf4 {[%clk 0:01:27]}  Ng8 {[%clk 0:01:38]} 28. e5 {[%clk 0:01:20]}  Ne7 {[%clk 0:01:37]} 29. Rd6 {[%clk 0:01:18]}  Nf5 {[%clk 0:01:20]} 30. Nxf5 {[%clk 0:01:14]}  gxf5 {[%clk 0:01:20]} 31. c5 {[%clk 0:01:12]}  Ke7 {[%clk 0:01:17]} 32. Kf2 {[%clk 0:00:59]}  g5 {[%clk 0:01:14]} 33. Ke3 {[%clk 0:00:57]}  Ra5 {[%clk 0:01:12]} 34. Rc1 {[%clk 0:00:49]}  Rb5 {[%clk 0:00:58]} 35. Bf1 {[%clk 0:00:48]}  Rb4 {[%clk 0:00:53]} 36. fxg5 {[%clk 0:00:03]}  hxg5 {[%clk 0:00:45]} 37. Rcd1 {[%clk 0:00:02]}  Re4+ {[%clk 0:00:40]} 38. Kf2 {[%clk 0:00:02]}  Rxe5 {[%clk 0:00:41]} 39. Bc4 {[%clk 0:00:01]}  Kf6 {[%clk 0:00:32]} 0-1


[Site "https://www.chess.com"]

[Event "Titled Tuesday Blitz December 13 Early 2022"]
[White "Sankalan Shah"]
[Black "Rangel, Daniel"]
[WhiteFideId "25600362"]
[BlackFideId "2124475"]
[WhiteElo "2118"]
[BlackElo "2225"]
[Result "0-1"]
[Round "03"]
[TimeControl "180+1"]
[Date "2022.12.14"]
[WhiteClock "0:00:11"]
[BlackClock "0:00:48"]

1. d4 {[%clk 0:03:00]}  d5 {[%clk 0:02:59]} 2. c4 {[%clk 0:02:58]}  c6 {[%clk 0:02:59]} 3. e3 {[%clk 0:02:57]}  Nf6 {[%clk 0:02:59]} 4. Nc3 {[%clk 0:02:57]}  e6 {[%clk 0:02:57]} 5. Qc2 {[%clk 0:02:56]}  Nbd7 {[%clk 0:02:58]} 6. Nf3 {[%clk 0:02:52]}  Bd6 {[%clk 0:02:58]} 7. g4 {[%clk 0:02:50]}  Nxg4 {[%clk 0:02:43]} 8. Rg1 {[%clk 0:02:49]}  Nxh2 {[%clk 0:02:42]} 9. Nxh2 {[%clk 0:02:46]}  Bxh2 {[%clk 0:02:43]} 10. Rxg7 {[%clk 0:02:47]}  h5 {[%clk 0:02:39]} 11. e4 {[%clk 0:02:43]}  Qf6 {[%clk 0:02:31]} 12. Rg2 {[%clk 0:02:29]}  Bf4 {[%clk 0:02:23]} 13. cxd5 {[%clk 0:02:06]}  exd5 {[%clk 0:02:12]} 14. exd5 {[%clk 0:01:56]}  Nb6 {[%clk 0:01:56]} 15. Ne4 {[%clk 0:01:38]}  Qh6 {[%clk 0:01:54]} 16. Bxf4 {[%clk 0:01:30]}  Qxf4 {[%clk 0:01:55]} 17. dxc6 {[%clk 0:01:31]}  bxc6 {[%clk 0:01:46]} 18. Bd3 {[%clk 0:01:18]}  Bd7 {[%clk 0:01:36]} 19. Qc5 {[%clk 0:01:13]}  Kd8 {[%clk 0:01:28]} 20. Rg7 {[%clk 0:01:02]}  Re8 {[%clk 0:01:22]} 21. Kf1 {[%clk 0:00:37]}  Kc7 {[%clk 0:01:04]} 22. Ng5 {[%clk 0:00:25]}  Rg8 {[%clk 0:00:53]} 23. Rxg8 {[%clk 0:00:11]}  Rxg8 {[%clk 0:00:54]} 24. Nxf7 {[%clk 0:00:12]}  Qxf7 {[%clk 0:00:49]} 25. Qe5+ {[%clk 0:00:11]}  Kb7 {[%clk 0:00:48]} 0-1


[Site "https://www.chess.com"]